{"text_format":"3","workbook":"xlsx","n_sheets":1,"sheets":["Фактура"],"not_rendered":{"defined_names":6},"read":"whole","date_system":"1900"}

{"sheet":"Фактура","index":0,"n_rows":26,"n_cols":7,"rows_kept":26,"merged":[[0,1,0,2],[1,1,1,2],[1,3,1,4],[1,5,1,6],[2,1,2,2],[2,3,2,4],[2,5,2,6],[3,1,3,2],[3,3,3,4],[4,1,4,2],[4,3,4,4],[5,3,5,4],[24,1,24,4],[25,1,25,4]]}
[null,"Име на фирма"]
[null,"Улица и номер",null,"Т: Телефонен номер",null,"Имейл"]
[null,"Град, област, пощ. код",null,"Ф: Номер на факс",null,"Уеб сайт"]
[null,"Да се плати от:",null,{"$f":"\"Телефон:   \"","v":"Телефон:   "},null,"Номер на фактура:"]
[null,"Адрес:",null,{"$f":"\"Факс:    \"","v":"Факс:    "},null,"Дата на фактура:"]
[{"$nulls":3},{"$f":"\"Имейл:   \"","v":"Имейл:   "}]
[null,{"$f":"\"Фактура за: \"","v":"Фактура за: "}]
[null,"Артикул №","Описание","Количество","Единична цена","Отстъпка","Цена"]
[{"$nulls":6},{"$f":"IFERROR((D9*E9)-F9,\"\")","v":0}]
[{"$nulls":6},0]
[{"$nulls":6},0]
[{"$nulls":6},0]
[{"$nulls":6},0]
[{"$nulls":6},0]
[{"$nulls":6},0]
[{"$nulls":6},0]
[{"$nulls":6},0]
[{"$nulls":6},0]
[{"$nulls":6},0]
[{"$nulls":6},0]
[{"$nulls":5},"Междинна сума по фактурата",{"$f":"SUM(ПростаФактура[Цена])","v":0}]
[{"$nulls":5},"Данъчна ставка"]
[{"$nulls":5},"ДДС",{"$f":"IFERROR(G21*G22,\"\")","v":0}]
[{"$nulls":5},"Други"]
[null,{"$f":"\"Направи всички чекове платими на \"&име_на_фирма&\".\"","v":"Направи всички чекове платими на Име на фирма."},{"$nulls":3},"Получено капаро"]
[null,"Общата сума е дължима след <#> дни. Просрочените сметки подлежат на служебна такса от <#>% месечно.",{"$nulls":3},"ОБЩА СУМА",{"$f":"IFERROR((G21+G23+G24)-G25,\"\")","v":0}]